fUSD/lending_fUSD_20260227
["ID","MTS","AMOUNT","RATE_DAILY","PERIOD"]
[406766192,1772167840656,-1026.24431526,0.00035541,30]
[406766194,1772167840665,-300.0,0.00035616,30]
[406766196,1772167840674,-287.89,0.000357,14]
[406766198,1772167840683,-900.0,0.0003573,2]
[406766200,1772167840693,-1911.44,0.000358,14]
[406766202,1772167840702,-1462.33,0.000358,14]
[406766204,1772167840711,-1159.46817301,0.00036082,30]
[406766206,1772167840720,-638.32,0.00036388,120]
[406766208,1772167840731,-500.0,0.00036388,30]
[406766210,1772167840741,-500.0,0.00036388,120]
[406766212,1772167840750,-150.0,0.0003643,2]
[406766214,1772167840759,-5005.0,0.00036463,7]
[406766216,1772167840768,-412.74,0.00036482,30]
[406766218,1772167840777,-5800.0,0.0003649,2]
[406766220,1772167840786,-500.0,0.00036505,10]
[406766222,1772167840796,-332.29757031,0.00036836,2]
[406766224,1772167840805,-1600.0,0.00036878,120]
[406766227,1772167840815,-900.0,0.000371,2]
[406766228,1772167840824,-500.0,0.00037441,5]
[406766231,1772167840833,-500.0,0.00037679,30]
[406766232,1772167840843,-500.0,0.00037679,120]
[406766234,1772167840852,-975.139,0.00037712,49]
[406766237,1772167840862,-254.24,0.00037712,49]
[406766238,1772167840871,-1000.0,0.00038,120]
[406766240,1772167840880,-481.15,0.00038034,30]
[406766242,1772167840889,-1911.44,0.000382,14]
[406766244,1772167840897,-1462.33,0.000382,14]
[406766246,1772167840907,-150.0,0.00038252,2]
[406766248,1772167840916,-500.0,0.00038299,10]
[406766250,1772167840925,-10000.0,0.00038356,120]
[406766252,1772167840934,-7852.0,0.00038356,120]
[406766254,1772167840944,-504.0,0.00038566,23]
[406766256,1772167840953,-253.2711,0.00038888,30]
[406766258,1772167840962,-287.89,0.000389,14]
[406766260,1772167840971,-412.74,0.00039366,30]
[406766262,1772167840980,-165.45,0.00039491,2]
[406766264,1772167840989,-332.29757031,0.00039524,2]
[406766266,1772167840998,-157.49128306,0.0004,120]
[406766268,1772167841007,-151.0,0.0004,120]
[406766270,1772167841016,-154.0,0.0004,120]
[406766272,1772167841025,-2000.0,0.0004,120]
[406766274,1772167841034,-150.0,0.00040165,2]
[406766276,1772167841044,-500.0,0.00040249,30]
[406766278,1772167841053,-1600.0,0.00040566,120]
[406766280,1772167841063,-160.0,0.00040566,120]
[406766282,1772167841072,-1206.1962,0.0004085,120]
[406766284,1772167841082,-393.21372598,0.00040949,31]
[406766286,1772167841091,-509.0389087,0.00040949,31]
[406766288,1772167841100,-500.0,0.00040949,31]
[406766290,1772167841110,-500.0,0.00040949,31]
[406766292,1772167841119,-319.19675888,0.00040949,31]
[406766294,1772167841128,-500.0,0.00040949,31]
[406766296,1772167841137,-500.0,0.00040949,2]
[406766298,1772167841147,-210143.0,0.0004095,60]
[406766301,1772167841157,-500.0,0.00041095,30]
[406766302,1772167841166,-500.0,0.00041095,120]
[406766304,1772167841175,-300.0,0.00041096,10]
[406766307,1772167841184,-800.0,0.00041096,13]
[406766309,1772167841195,-800.0,0.00041096,13]
[406766310,1772167841207,-800.0,0.00041096,13]
[406766312,1772167841215,-800.0,0.00041096,13]
[406766314,1772167841225,-800.0,0.00041096,13]
[406766316,1772167841234,-800.0,0.00041096,13]
[406766319,1772167841248,-800.0,0.00041096,13]
[406766321,1772167841258,-800.0,0.00041096,13]
[406766323,1772167841270,-800.0,0.00041096,13]
[406766325,1772167841287,-800.0,0.00041096,13]
[406766327,1772167841296,-800.0,0.00041096,13]
[406766329,1772167841305,-800.0,0.00041096,13]
[406766331,1772167841315,-800.0,0.00041096,13]
[406766333,1772167841324,-800.0,0.00041096,13]
[406766335,1772167841334,-800.0,0.00041096,13]
[406766337,1772167841351,-800.0,0.00041096,13]
[406766339,1772167841364,-800.0,0.00041096,13]
[406766341,1772167841373,-800.0,0.00041096,13]
[406766343,1772167841383,-800.0,0.00041096,13]
[406766345,1772167841392,-800.0,0.00041096,13]
[406766347,1772167841401,-800.0,0.00041096,13]
[406766349,1772167841410,-800.0,0.00041096,13]
[406766351,1772167841421,-800.0,0.00041096,13]
[406766353,1772167841430,-800.0,0.00041096,13]
[406766355,1772167841440,-800.0,0.00041096,13]
[406766357,1772167841450,-800.0,0.00041096,13]
[406766359,1772167841459,-800.0,0.00041096,13]
[406766361,1772167841468,-800.0,0.00041096,13]
[406766363,1772167841478,-800.0,0.00041096,13]
[406766365,1772167841487,-800.0,0.00041096,13]
[406766367,1772167841497,-800.0,0.00041096,13]
[406766369,1772167841506,-420.0,0.00041096,13]
[406766371,1772167841515,-800.0,0.00041096,13]
[406766372,1772167841524,-800.0,0.00041096,13]
[406766374,1772167841533,-800.0,0.00041096,13]
[406766376,1772167841542,-813.0,0.00041096,13]
[406766378,1772167841553,-800.0,0.00041096,13]
[406766380,1772167841563,-800.0,0.00041096,13]
[406766382,1772167841573,-800.0,0.00041096,13]
[406766384,1772167841583,-800.0,0.00041096,13]
[406766387,1772167841591,-800.0,0.00041096,13]
[406766389,1772167841601,-800.0,0.00041096,13]
[406766390,1772167841610,-800.0,0.00041096,13]
[406766393,1772167841619,-800.0,0.00041096,13]
[406766395,1772167841629,-800.0,0.00041096,13]
[406766397,1772167841639,-800.0,0.00041096,13]
[406766398,1772167841648,-800.0,0.00041096,13]
[406766401,1772167841658,-800.0,0.00041096,13]
[406766403,1772167841667,-800.0,0.00041096,13]
[406766404,1772167841676,-800.0,0.00041096,13]
[406766406,1772167841686,-800.0,0.00041096,13]
[406766408,1772167841695,-800.0,0.00041096,13]
[406766411,1772167841704,-1040.2,0.00041245,30]
[406766412,1772167841714,-500.0,0.00041272,30]
[406766414,1772167841723,-500.0,0.00041272,30]
[406766416,1772167841732,-500.0,0.00041272,30]
[406766419,1772167841742,-500.0,0.00041272,10]
[406766421,1772167841751,-500.0,0.00041272,10]
[406766423,1772167841760,-500.0,0.00041272,10]
[406766425,1772167841770,-518.5920254,0.00041272,10]
[406766426,1772167841779,-339.91488498,0.00041272,120]
[406766429,1772167841788,-600.09,0.000413,30]
[406766430,1772167841798,-1911.44,0.000413,14]
[406766432,1772167841808,-1462.33,0.000413,14]
[406766434,1772167841817,-438.21070336,0.00041391,2]
[406766437,1772167841827,-856.45675791,0.00041391,2]
[406766438,1772167841836,-306.29679311,0.00041391,2]
[406766440,1772167841847,-852.28136836,0.00041391,2]
[406766442,1772167841857,-1565.26887382,0.00041391,2]
[406766444,1772167841866,-307.55492962,0.00041391,2]
[406766446,1772167841875,-300.0,0.00041391,2]
[406766448,1772167841884,-459.19979016,0.00041391,2]
[406766450,1772167841894,-300.0,0.00041391,2]
[406766453,1772167841904,-368.08561276,0.00041391,2]
[406766454,1772167841913,-371.72919772,0.00041391,2]
[406766456,1772167841922,-300.0,0.00041391,2]
[406766459,1772167841931,-300.0,0.00041391,2]
[406766460,1772167841941,-519.04834756,0.00041391,2]
[406766463,1772167841950,-306.51036434,0.00041391,2]
[406766465,1772167841960,-300.0,0.00041391,2]
[406766466,1772167841970,-300.0,0.00041391,2]
[406766468,1772167841980,-405.58612148,0.00041391,2]
[406766470,1772167841990,-300.0,0.00041391,2]
[406766472,1772167841999,-300.0,0.00041391,2]
[406766474,1772167842008,-572.25527299,0.00041391,2]
[406766476,1772167842017,-1083.06069021,0.00041391,2]
[406766478,1772167842026,-300.0,0.00041391,2]
[406766480,1772167842036,-856.45675791,0.00041391,2]
[406766482,1772167842045,-306.29679311,0.00041391,2]
[406766484,1772167842054,-852.28136836,0.00041391,2]
[406766486,1772167842063,-1565.26887382,0.00041391,2]
[406766488,1772167842072,-307.55492962,0.00041391,2]
[406766490,1772167842082,-300.0,0.00041391,2]
[406766492,1772167842091,-459.19979016,0.00041391,2]
[406766494,1772167842101,-300.0,0.00041391,2]
[406766496,1772167842112,-300.0,0.00041391,2]
[406766498,1772167842121,-371.72919772,0.00041391,2]
[406766500,1772167842130,-300.0,0.00041391,2]
[406766502,1772167842139,-342.99090995,0.00041391,2]
[406766504,1772167842148,-419.81311211,0.00041391,2]
[406766506,1772167842158,-300.0,0.00041391,2]
[406766508,1772167842167,-519.04834756,0.00041391,2]
[406766510,1772167842176,-306.51036434,0.00041391,2]
[406766512,1772167842186,-538.97683895,0.00041391,2]
[406766514,1772167842195,-300.0,0.00041391,2]
[406766516,1772167842211,-300.0,0.00041391,2]
[406766518,1772167842220,-511.30277196,0.00041391,2]
[406766520,1772167842231,-405.58612148,0.00041391,2]
[406766522,1772167842242,-528.6119758,0.00041391,2]
[406766524,1772167842251,-300.0,0.00041391,2]
[406766526,1772167842260,-300.0,0.00041391,2]
[406766528,1772167842270,-300.0,0.00041391,2]
[406766530,1772167842279,-154.0,0.000415,120]
[406766532,1772167842288,-166.4051197,0.0004158,120]
[406766534,1772167842298,-151.0,0.000416,120]
[406766536,1772167842308,-500.0,0.00041643,120]
[406766538,1772167842317,-526.46,0.00041644,120]
[406766540,1772167842327,-500.0,0.00041644,120]
[406766542,1772167842336,-500.0,0.00041644,120]
[406766544,1772167842345,-500.0,0.00041644,120]
[406766546,1772167842354,-500.0,0.00041644,120]
[406766548,1772167842364,-500.0,0.00041644,120]
[406766550,1772167842373,-500.0,0.00041644,120]
[406766552,1772167842382,-500.0,0.00041644,120]
[406766554,1772167842392,-500.0,0.00041644,120]
[406766556,1772167842401,-500.0,0.00041644,120]
[406766558,1772167842411,-504.0,0.00041644,120]
[406766560,1772167842420,-500.0,0.00041644,120]
[406766562,1772167842430,-500.0,0.00041644,120]
[406766564,1772167842439,-500.0,0.00041644,120]
[406766566,1772167842448,-666.0,0.00041644,120]
[406766568,1772167842457,-287.89,0.000417,14]
[406766570,1772167842467,-902.2825821,0.00041778,10]
[406766572,1772167842476,-614.79491102,0.00041918,10]
[406766574,1772167842485,-1040.2,0.00041965,30]
[406766576,1772167842495,-252.77720625,0.00042,30]
[406766578,1772167842504,-219.62898678,0.00042149,2]
[406766580,1772167842514,-150.0,0.00042173,120]
[406766583,1772167842523,-500.0,0.00042193,30]
[406766585,1772167842532,-500.0,0.00042193,30]
[406766586,1772167842541,-184.54510157,0.00042199,2]
[406766589,1772167842551,-11590.16848354,0.00042199,2]
[406766590,1772167842560,-332.29757031,0.00042212,15]
[406766593,1772167842569,-500.0,0.00042219,30]
[406766595,1772167842579,-110506.7864,0.0004222,7]
[406766597,1772167842591,-412.74,0.00042249,120]
[406766599,1772167842600,-500.0,0.00042299,30]
[406766601,1772167842609,-174.00015664,0.00042299,30]
[406766603,1772167842619,-266.58091307,0.00042299,120]
[406766605,1772167842630,-500.0,0.00042299,2]
[406766607,1772167842639,-210143.0,0.000423,60]
[406766609,1772167842648,-3920.14,0.000423,30]
[406766611,1772167842658,-300.0,0.00042301,30]
[406766613,1772167842667,-215.74874773,0.00042438,120]
[406766616,1772167842676,-441.48,0.00042546,120]
[406766618,1772167842686,-337.03,0.00042546,30]
[406766619,1772167842695,-360.86,0.00042546,120]
[406766620,1772167842704,-1040.2,0.00042685,30]
[406766621,1772167842713,-500.0,0.00042719,30]
[406766622,1772167842721,-1911.44,0.000428,14]
[406766623,1772167842730,-1462.33,0.000428,14]
[406766624,1772167842739,-970.48795508,0.00042999,60]
[406766625,1772167842748,-2000.0,0.00043,2]
[406766626,1772167842757,-181.82816385,0.00043,7]
[406766627,1772167842766,-181.82816385,0.00043,7]
[406766628,1772167842774,-183.53515597,0.00043,7]
[406766629,1772167842784,-183.53515597,0.00043,7]
[406766630,1772167842793,-154.0,0.00043,120]
[406766631,1772167842802,-211.31322134,0.00043,2]
[406766632,1772167842811,-222.00423701,0.00043,3]
[406766633,1772167842820,-2000.0,0.00043,3]
[406766634,1772167842829,-150.0,0.00043014,60]
[406766636,1772167842837,-150.0,0.00043014,2]
[406766638,1772167842846,-150.0,0.00043014,2]
[406766641,1772167842855,-500.0,0.00043057,30]
[406766642,1772167842865,-400.0,0.00043068,120]
[406766644,1772167842873,-400.0,0.00043068,120]
[406766646,1772167842883,-187.45505356,0.00043069,60]
[406766649,1772167842891,-150.0,0.00043069,2]
[406766652,1772167842900,-150.0,0.00043069,2]
[406766654,1772167842910,-250.0,0.00043124,2]
[406766656,1772167842919,-150.0,0.00043124,2]
[406766658,1772167842928,-158.41955894,0.00043178,2]
[406766660,1772167842937,-470.15896317,0.00043188,30]
[406766662,1772167842946,-151.0,0.000432,120]
[406766664,1772167842955,-2000.0,0.000432,7]
[406766666,1772167842965,-4891.0,0.00043243,7]
[406766668,1772167842975,-156.22,0.00043251,120]
[406766670,1772167842984,-229.83621429,0.00043277,120]
[406766672,1772167842993,-288.88623394,0.00043287,120]
[406766675,1772167843002,-156.22,0.00043351,120]
[406766677,1772167843011,-1040.2,0.00043405,30]
[406766679,1772167843020,-156.22,0.00043451,120]
[406766681,1772167843029,-500.0,0.0004355,2]
[406766683,1772167843038,-500.0,0.0004355,2]
[406766685,1772167843047,-625082.332,0.0004355,30]
[406766687,1772167843056,-156.22,0.00043551,120]
[406766689,1772167843065,-193.41,0.000436,30]
[406766691,1772167843075,-3920.14,0.000436,30]
[406766693,1772167843084,-500.0,0.00043649,2]
[406766695,1772167843093,-210143.0,0.0004365,60]
[406766697,1772167843102,-156.22,0.00043651,120]
[406766699,1772167843111,-2000.8709,0.00043697,4]
[406766701,1772167843120,-10023.6952,0.00043697,4]
[406766703,1772167843129,-156.22,0.00043751,120]
[406766705,1772167843139,-1000.0,0.000438,30]
[406766707,1772167843148,-156.22,0.00043851,120]
[406766709,1772167843157,-155.90421945,0.00043868,120]
[406766711,1772167843166,-500.0,0.00043868,2]
[406766713,1772167843175,-500.0,0.00043868,2]
[406766715,1772167843184,-500.0,0.00043868,2]
[406766717,1772167843193,-500.0,0.00043868,2]
[406766719,1772167843206,-500.0,0.00043868,2]
[406766721,1772167843215,-500.0,0.00043868,2]
[406766723,1772167843224,-500.0,0.00043868,2]
[406766725,1772167843233,-253.93762627,0.00043868,2]
[406766727,1772167843243,-213.21692047,0.000439,90]
[406766729,1772167843252,-1000.0,0.000439,2]
[406766731,1772167843261,-961241.36320618,0.000439,2]
[406766734,1772167843279,-3604.8,0.000439,2]
[406766736,1772167843291,-748.26893567,0.000439,2]
[406766743,1772167843350,-1000.0,0.00039,120]
[406766745,1772167843360,-300.00000001,0.00041391,2]
[406766747,1772167843369,-20474.12000577,0.000439,2]
[406766749,1772167843380,-635.10899384,0.000439,2]
[406766772,1772167843584,-315.61667618,0.00041391,2]
[406766774,1772167843594,-1083.06069021,0.00041391,2]
[406766776,1772167843604,-448.63811838,0.00041391,2]
[406766778,1772167843613,-603.74797958,0.0004222,60]
[406766780,1772167843627,-119.25202042,0.0004222,60]
[406766782,1772167843637,-322.94797957,0.000439,2]
[406766784,1772167843648,-26031.29487897,0.000439,2]
[406766786,1772167843658,-12111.3028,0.000439,2]
[406766788,1772167843667,-200.0,0.000439,2]
[406766790,1772167843676,-200.0,0.000439,2]
[406766792,1772167843686,-200.0,0.000439,2]
[406766794,1772167843695,-200.0,0.000439,2]
[406766796,1772167843704,-151.0,0.000439,120]
[406766798,1772167843713,-151.0,0.000439,120]
[406766800,1772167843722,-151.0,0.000439,120]
[406766802,1772167843731,-151.0,0.000439,120]
[406766804,1772167843740,-151.0,0.000439,120]
[406766806,1772167843750,-151.0,0.000439,120]
[406766808,1772167843759,-151.0,0.000439,120]
[406766810,1772167843768,-151.0,0.000439,120]
[406766812,1772167843777,-151.0,0.000439,120]
[406766814,1772167843786,-151.0,0.000439,120]
[406766816,1772167843795,-151.0,0.000439,120]
[406766818,1772167843803,-151.0,0.000439,120]
[406766820,1772167843813,-217.910278,0.000439,120]
[406766822,1772167843822,-151.0,0.000439,30]
[406766824,1772167843831,-201.36154,0.000439,30]
[406766826,1772167843840,-151.0,0.000439,120]
[406766828,1772167843851,-191.658808,0.000439,120]
[406766830,1772167843861,-191.658808,0.000439,120]
[406766832,1772167843870,-191.658808,0.000439,120]
[406766834,1772167843879,-191.658808,0.000439,120]
[406766836,1772167843887,-151.0,0.000439,120]
[406766838,1772167843896,-151.0,0.000439,120]
[406766840,1772167843906,-284.327312,0.000439,120]
[406766842,1772167843915,-151.0,0.000439,120]
[406766844,1772167843923,-201.864794,0.000439,30]
[406766846,1772167843933,-201.864794,0.000439,30]
[406766848,1772167843942,-201.864794,0.000439,30]
[406766850,1772167843950,-201.864794,0.000439,30]
[406766852,1772167843960,-151.0,0.000439,120]
[406766854,1772167843969,-151.0,0.000439,60]
[406766856,1772167843978,-151.0,0.000439,120]
[406766858,1772167843987,-151.0,0.000439,35]
[406766860,1772167843996,-164.996573,0.000439,120]
[406766862,1772167844006,-151.0,0.000439,120]
[406766864,1772167844015,-151.0,0.000439,2]
[406766866,1772167844025,-196.450597,0.000439,120]
[406766868,1772167844034,-151.0,0.000439,2]
[406766870,1772167844044,-778.621354,0.000439,120]
[406766872,1772167844053,-778.621354,0.000439,120]
[406766874,1772167844062,-778.621354,0.000439,120]
[406766876,1772167844071,-778.621354,0.000439,120]
[406766878,1772167844081,-151.0,0.000439,120]
[406766880,1772167844090,-534.832946,0.000439,120]
[406766882,1772167844099,-534.832946,0.000439,120]
[406766884,1772167844108,-258.007832,0.000439,120]
[406766886,1772167844117,-534.832946,0.000439,120]
[406766888,1772167844126,-534.832946,0.000439,120]
[406766890,1772167844135,-151.0,0.000439,120]
[406766892,1772167844144,-151.0,0.000439,120]
[406766894,1772167844153,-151.0,0.000439,120]
[406766896,1772167844162,-151.0,0.000439,120]
[406766898,1772167844171,-151.0,0.000439,120]
[406766900,1772167844181,-151.0,0.000439,120]
[406766902,1772167844190,-151.0,0.000439,120]
[406766904,1772167844200,-151.0,0.000439,120]
[406766906,1772167844211,-151.0,0.000439,120]
[406766908,1772167844220,-158.193026,0.000439,120]
[406766910,1772167844230,-151.0,0.000439,120]
[406766912,1772167844239,-151.0,0.000439,120]
[406766914,1772167844248,-159.305684,0.000439,120]
[406766916,1772167844258,-151.0,0.000439,120]
[406766918,1772167844267,-151.0,0.000439,120]
[406766920,1772167844278,-151.0,0.000439,7]
[406766922,1772167844287,-151.0,0.000439,7]
[406766924,1772167844297,-151.0,0.000439,7]
[406766926,1772167844306,-151.0,0.000439,7]
[406766928,1772167844316,-151.0,0.000439,120]
[406766953,1772167844531,-217.387866,0.000439,15]
[406766955,1772167844542,-217.387866,0.000439,15]
[406766957,1772167844552,-151.0,0.000439,120]
[406766959,1772167844562,-217.387866,0.000439,15]
[406766961,1772167844572,-217.387866,0.000439,15]
[406766963,1772167844582,-154.181124,0.000439,60]
[406766965,1772167844593,-234.314225,0.000439,120]
[406766967,1772167844603,-151.778143,0.000439,120]
[406766969,1772167844613,-151.0,0.000439,120]
[406766971,1772167844622,-151.0,0.000439,120]
[406766974,1772167844632,-151.0,0.000439,120]
[406766976,1772167844642,-209.488269,0.000439,120]
[406766978,1772167844652,-151.0,0.000439,120]
[406766980,1772167844662,-151.0,0.000439,120]
[406766982,1772167844673,-322.896758,0.000439,120]
[406766984,1772167844683,-322.896758,0.000439,120]
[406766986,1772167844693,-322.896758,0.000439,120]
[406766988,1772167844704,-322.896758,0.000439,120]
[406766990,1772167844714,-151.0,0.000439,120]
[406766992,1772167844723,-151.0,0.000439,120]
[406766994,1772167844733,-151.0,0.000439,120]
[406766996,1772167844742,-151.0,0.000439,120]
[406766998,1772167844752,-151.0,0.000439,120]
[406767000,1772167844762,-151.0,0.000439,120]
[406767002,1772167844772,-628.071878,0.000439,120]
[406767004,1772167844781,-151.0,0.000439,120]
[406767006,1772167844791,-628.071878,0.000439,120]
[406767008,1772167844800,-204.829574,0.000439,120]
[406767010,1772167844810,-628.071878,0.000439,120]
[406767012,1772167844819,-628.071878,0.000439,120]
[406767014,1772167844828,-151.0,0.000439,120]
[406767016,1772167844837,-151.0,0.000439,120]
[406767018,1772167844847,-151.0,0.000439,120]
[406767020,1772167844856,-151.0,0.000439,120]
[406767022,1772167844866,-151.0,0.000439,120]
[406767024,1772167844875,-254.28375,0.000439,120]
[406767026,1772167844885,-151.0,0.000439,120]
[406767028,1772167844895,-151.0,0.000439,120]
[406767030,1772167844904,-168.257733,0.000439,120]
[406767032,1772167844914,-151.0,0.000439,120]
[406767034,1772167844923,-831.950614,0.000439,120]
[406767036,1772167844933,-831.950614,0.000439,120]
[406767038,1772167844942,-671.182909,0.000439,14]
[406767040,1772167844951,-831.950614,0.000439,120]
[406767042,1772167844960,-671.182909,0.000439,14]
[406767044,1772167844970,-831.950614,0.000439,120]
[406767046,1772167844979,-671.182909,0.000439,14]
[406767048,1772167844988,-671.182909,0.000439,14]
[406767050,1772167844997,-187.550299,0.000439,90]
[406767052,1772167845007,-187.550299,0.000439,90]
[406767054,1772167845016,-187.550299,0.000439,90]
[406767056,1772167845026,-187.550299,0.000439,90]
[406767057,1772167845036,-694.712671,0.000439,120]
[406767060,1772167845046,-694.712671,0.000439,120]
[406767062,1772167845057,-151.0,0.000439,120]
[406767064,1772167845066,-694.712671,0.000439,120]
[406767066,1772167845076,-694.712671,0.000439,120]
[406767068,1772167845085,-151.0,0.000439,120]
[406767070,1772167845095,-151.36324,0.000439,120]
[406767072,1772167845105,-151.0,0.000439,120]
[406767074,1772167845114,-151.36324,0.000439,120]
[406767076,1772167845124,-151.0,0.000439,120]
[406767078,1772167845133,-151.36324,0.000439,120]
[406767080,1772167845143,-151.0,0.000439,31]
[406767082,1772167845152,-151.36324,0.000439,120]
[406767084,1772167845162,-151.0,0.000439,120]
[406767086,1772167845172,-151.0,0.000439,120]
[406767088,1772167845182,-158.469121,0.000439,120]
[406767090,1772167845192,-832.47298,0.000439,120]
[406767092,1772167845205,-832.47298,0.000439,120]
[406767095,1772167845215,-151.0,0.000439,120]
[406767097,1772167845225,-832.47298,0.000439,120]
[406767098,1772167845234,-156.22,0.00043951,120]
[406767100,1772167845246,-1911.44,0.00044,14]
[406767102,1772167845256,-1462.33,0.00044,14]
[406767104,1772167845267,-211.0,0.00044,30]
[406767107,1772167845278,-11590.16848354,0.00044045,2]
[406767109,1772167845287,-156.27,0.00044051,120]
[406767111,1772167845297,-150.0,0.00044158,120]
[406767112,1772167845307,-1600.0,0.00044254,120]
[406767115,1772167845317,-150.0,0.00044281,120]
[406767117,1772167845327,-500.0,0.00044353,60]
[406767119,1772167845337,-500.0,0.00044353,60]
[406767121,1772167845347,-500.0,0.00044353,60]
[406767123,1772167845357,-154.0,0.000444,120]
[406767125,1772167845367,-504.0,0.00044486,28]
[406767126,1772167845378,-815.0,0.000445,120]
[406767129,1772167845389,-2251.4,0.00044517,30]
[406767131,1772167845399,-2251.4,0.00044517,30]
[406767133,1772167845409,-2251.4,0.00044517,30]
[406767135,1772167845419,-2251.4,0.00044517,30]
[406767136,1772167845429,-3920.14,0.000446,30]
[406767139,1772167845439,-2000.0,0.000446,7]
[406767141,1772167845450,-1556.61079216,0.00044615,2]
[406767143,1772167845460,-2251.4,0.00044791,30]
[406767144,1772167845470,-2251.4,0.00044791,30]
[406767146,1772167845480,-151.0,0.000448,120]
[406767148,1772167845490,-151.0,0.000449,120]
[406767151,1772167845500,-151.0,0.000449,120]
[406767153,1772167845511,-151.0,0.000449,120]
[406767155,1772167845522,-332.29757031,0.000449,15]
[406767157,1772167845532,-184.05,0.000449,120]
[406767159,1772167845542,-214.73069198,0.000449,120]
[406767161,1772167845552,-500.0,0.00044901,60]
[406767163,1772167845563,-500.0,0.00044901,60]
[406767165,1772167845573,-500.0,0.00044901,60]
[406767166,1772167845582,-500.0,0.0004499,60]
[406767167,1772167845592,-500.0,0.00044997,120]
[406767168,1772167845602,-433.97,0.00044997,120]
[406767169,1772167845612,-35594.30537867,0.00045,60]
[406767175,1772167845767,-7222.24352672,0.00045,60]
[406767178,1772167845807,-660.00303771,0.00045,60]
[406767181,1772167845827,-1212.0,0.00043,60]
[406767183,1772167845841,-7111.3767327,0.00045,60]
[406767185,1772167845854,-1774.34053604,0.00045,60]
[406767187,1772167845866,-2515.22569664,0.00045,60]
[406767205,1772167846024,-300.0,0.00041391,2]
[406767207,1772167846034,-74.83628207,0.00041391,2]
[406767214,1772167846092,-225.16371793,0.00041391,2]
[406767216,1772167846102,-150.0,0.00043475,2]
[406767218,1772167846112,-150.0,0.00043475,120]
[406767220,1772167846122,-219.96588249,0.000439,120]
[406767224,1772167846148,-612.50709751,0.000439,120]
[406767225,1772167846158,-723.0,0.000439,60]
[406767226,1772167846168,-1212.0,0.000449,60]
[406767227,1772167846178,-680.35051624,0.00045,60]
[406767228,1772167846211,-500.31483672,0.00045,60]
[406767229,1772167846223,-4860.62470001,0.00045,60]
[406767230,1772167846235,-1067.53955,0.00045,60]
[406767231,1772167846247,-9428.59075788,0.00045,60]
[406767235,1772167862784,600.0,0.00017042,120]
[406767236,1772167863736,300.0,0.00017042,120]
[406767237,1772167865826,195.0,0.00017042,120]
[406767255,1772169032057,-383.46812615,0.000102,2]
[406767256,1772169032067,-195.0,0.00010212,2]
[406767257,1772169032077,-195.0,0.00010225,2]
[406767258,1772169032087,-1200.0,0.00010299,2]
[406767259,1772169032098,-500.0,0.000103,2]
[406767260,1772169032107,-500.0,0.000103,2]